fUSD/lending_fUSD_20241123
["ID","MTS","AMOUNT","RATE_DAILY","PERIOD"]
[343162405,1732389097782,-500.0,0.00055869,120]
[343162406,1732389097791,-1293.77,0.00055869,120]
[343162407,1732389097800,-781.19,0.00055869,120]
[343162408,1732389097810,-500.0,0.00055869,120]
[343162409,1732389097820,-1494.48,0.00055869,120]
[343162410,1732389097830,-500.0,0.00055869,120]
[343162411,1732389097839,-500.0,0.00055869,30]
[343162412,1732389097849,-500.0,0.00055869,120]
[343162413,1732389097859,-687.21,0.00055869,120]
[343162414,1732389097868,-503.81,0.00055869,120]
[343162415,1732389097877,-428.08,0.00055869,120]
[343162416,1732389097887,-500.0,0.00055869,120]
[343162417,1732389097896,-500.0,0.00055869,120]
[343162418,1732389097907,-500.0,0.00055869,120]
[343162419,1732389097916,-500.0,0.00055869,120]
[343162420,1732389097926,-500.0,0.00055869,120]
[343162421,1732389097935,-285635.56751233,0.0005587,120]
[343162422,1732389097945,-151.0,0.0005587,120]
[343162423,1732389097954,-180.379376,0.0005587,120]
[343162424,1732389097964,-180.379376,0.0005587,120]
[343162425,1732389097973,-151.0,0.0005587,120]
[343162426,1732389097983,-151.0,0.0005587,120]
[343162427,1732389097994,-151.0,0.0005587,120]
[343162428,1732389098004,-224.0475,0.0005587,30]
[343162429,1732389098014,-224.0475,0.0005587,30]
[343162430,1732389098023,-151.0,0.0005587,120]
[343162431,1732389098032,-151.0,0.0005587,120]
[343162432,1732389098043,-151.0,0.0005587,120]
[343162433,1732389098052,-151.0,0.0005587,120]
[343162434,1732389098061,-151.0,0.0005587,120]
[343162435,1732389098075,-151.0,0.0005587,120]
[343162436,1732389098084,-467.445494,0.0005587,120]
[343162437,1732389098094,-467.445494,0.0005587,120]
[343162438,1732389098104,-151.0,0.0005587,120]
[343162439,1732389098114,-151.0,0.0005587,120]
[343162440,1732389098123,-169.15571,0.0005587,120]
[343162441,1732389098132,-169.15571,0.0005587,120]
[343162442,1732389098142,-151.0,0.0005587,120]
[343162443,1732389098152,-151.0,0.0005587,120]
[343162444,1732389098163,-152.366822,0.0005587,120]
[343162445,1732389098173,-151.0,0.0005587,120]
[343162446,1732389098183,-240.625105,0.0005587,120]
[343162447,1732389098193,-240.625105,0.0005587,120]
[343162448,1732389098203,-151.0,0.0005587,120]
[343162449,1732389098214,-151.0,0.0005587,120]
[343162450,1732389098224,-151.0,0.0005587,120]
[343162451,1732389098235,-269.547519,0.0005587,120]
[343162452,1732389098245,-151.0,0.0005587,120]
[343162453,1732389098255,-218.633121,0.0005587,110]
[343162454,1732389098265,-218.633121,0.0005587,110]
[343162455,1732389098275,-151.0,0.0005587,120]
[343162456,1732389098285,-432.096887,0.0005587,30]
[343162457,1732389098295,-432.096887,0.0005587,30]
[343162458,1732389098304,-241.004659,0.0005587,120]
[343162459,1732389098314,-241.004659,0.0005587,120]
[343162460,1732389098324,-151.0,0.0005587,120]
[343162461,1732389098334,-151.0,0.0005587,120]
[343162462,1732389098344,-194.394604,0.0005587,120]
[343162463,1732389098354,-151.0,0.0005587,120]
[343162464,1732389098363,-151.0,0.0005587,120]
[343162465,1732389098373,-813.605447,0.0005587,120]
[343162466,1732389098383,-332.281826,0.0005587,120]
[343162467,1732389098393,-813.605451,0.0005587,120]
[343162468,1732389098403,-332.281834,0.0005587,120]
[343162469,1732389098414,-150.0,0.00055875,14]
[343162470,1732389098424,-150.0,0.00055877,14]
[343162471,1732389098433,-1000.0,0.0005588,27]
[343162472,1732389098443,-1000.0,0.0005588,27]
[343162473,1732389098452,-175.27,0.00055881,2]
[343162474,1732389098461,-160.22331355,0.00055887,120]
[343162475,1732389098471,-160.22331355,0.00055887,120]
[343162476,1732389098608,-160.22331355,0.00055887,120]
[343162477,1732389098630,-160.22331355,0.00055887,120]
[343162478,1732389098640,-160.22,0.00055887,120]
[343162479,1732389098651,-150.20935646,0.00055887,120]
[343162480,1732389098662,-150.20935646,0.00055887,120]
[343162481,1732389098671,-150.20935646,0.00055887,120]
[343162482,1732389098681,-150.20935646,0.00055887,120]
[343162483,1732389098690,-150.20935646,0.00055887,120]
[343162484,1732389098699,-150.20935646,0.00055887,120]
[343162485,1732389098708,-150.20935646,0.00055887,120]
[343162486,1732389098718,-150.0,0.00055888,14]
[343162487,1732389098727,-500.0,0.00055889,2]
[343162488,1732389098737,-375.88943935,0.00055889,120]
[343162489,1732389098746,-185.78,0.00055889,120]
[343162490,1732389098756,-500.0,0.00055889,120]
[343162491,1732389098765,-427.56725593,0.00055889,120]
[343162492,1732389098775,-881.69,0.00055889,120]
[343162493,1732389098784,-828.16,0.00055889,120]
[343162494,1732389098795,-500.0,0.00055889,120]
[343162495,1732389098805,-163.1,0.00055889,120]
[343162496,1732389098815,-500.0,0.00055889,120]
[343162497,1732389098824,-1572.78,0.00055889,120]
[343162498,1732389098834,-938.06,0.00055889,120]
[343162499,1732389098844,-500.0,0.00055889,120]
[343162500,1732389098855,-504.66,0.00055889,120]
[343162501,1732389098866,-500.0,0.00055889,120]
[343162502,1732389098876,-500.0,0.00055889,21]
[343162503,1732389098885,-153.705631,0.00055889,120]
[343162504,1732389098895,-503.12,0.00055889,120]
[343162505,1732389098906,-500.0,0.00055889,120]
[343162506,1732389098917,-500.0,0.00055889,120]
[343162507,1732389098927,-781.19,0.00055889,120]
[343162508,1732389098937,-1494.48,0.00055889,120]
[343162509,1732389098947,-687.21,0.00055889,120]
[343162510,1732389098956,-500.0,0.00055889,120]
[343162511,1732389098967,-433.14339239,0.00055889,120]
[343162512,1732389098977,-500.0,0.00055889,120]
[343162513,1732389098988,-44115.00325545,0.00055889,60]
[343162514,1732389099001,-1604.93659282,0.0005589,30]
[343162515,1732389099010,-161.97907418,0.0005589,34]
[343162516,1732389099020,-867.13,0.0005589,120]
[343162517,1732389099031,-223.02821175,0.0005589,27]
[343162518,1732389099041,-6291.13588044,0.0005589,15]
[343162519,1732389099053,-2657.55209029,0.0005589,15]
[343162520,1732389099062,-2974.49108079,0.0005589,2]
[343162521,1732389099074,-321.09227668,0.0005589,2]
[343162522,1732389099086,-726.02898968,0.0005589,120]
[343162523,1732389099095,-726.02898968,0.0005589,120]
[343162524,1732389099104,-726.02898968,0.0005589,120]
[343162525,1732389099113,-726.02898968,0.0005589,120]
[343162526,1732389099124,-726.02898968,0.0005589,120]
[343162527,1732389099134,-726.02898968,0.0005589,120]
[343162528,1732389099145,-726.02898968,0.0005589,120]
[343162529,1732389099155,-726.02898968,0.0005589,120]
[343162530,1732389099166,-726.02898968,0.0005589,120]
[343162531,1732389099175,-726.02898968,0.0005589,120]
[343162532,1732389099185,-726.02898968,0.0005589,120]
[343162533,1732389099194,-726.02898968,0.0005589,120]
[343162534,1732389099205,-726.02898968,0.0005589,120]
[343162535,1732389099215,-726.02898968,0.0005589,120]
[343162536,1732389099224,-726.02898968,0.0005589,120]
[343162537,1732389099235,-726.02898968,0.0005589,120]
[343162538,1732389099244,-726.02898968,0.0005589,120]
[343162539,1732389099254,-726.02898968,0.0005589,120]
[343162540,1732389099263,-726.02898968,0.0005589,120]
[343162541,1732389099272,-726.02,0.0005589,120]
[343162542,1732389099282,-1089.04348451,0.0005589,120]
[343162543,1732389099291,-1089.04348451,0.0005589,120]
[343162544,1732389099301,-1089.04348451,0.0005589,120]
[343162545,1732389099310,-1089.04348451,0.0005589,120]
[343162546,1732389099320,-1089.04348451,0.0005589,120]
[343162547,1732389099330,-1089.04348451,0.0005589,120]
[343162548,1732389099340,-1089.04348451,0.0005589,120]
[343162549,1732389099349,-1089.04348451,0.0005589,120]
[343162550,1732389099359,-1089.04348451,0.0005589,120]
[343162551,1732389099368,-1089.04348451,0.0005589,120]
[343162552,1732389099378,-1089.04348451,0.0005589,120]
[343162553,1732389099387,-1089.04348451,0.0005589,120]
[343162554,1732389099396,-1089.04348451,0.0005589,120]
[343162555,1732389099406,-1089.04348451,0.0005589,120]
[343162556,1732389099416,-1089.04348451,0.0005589,120]
[343162557,1732389099426,-1089.04348451,0.0005589,120]
[343162558,1732389099435,-1089.04348451,0.0005589,120]
[343162559,1732389099444,-1089.04348451,0.0005589,120]
[343162560,1732389099453,-1089.04348451,0.0005589,120]
[343162561,1732389099463,-1089.04,0.0005589,120]
[343162562,1732389099471,-150.2,0.0005589,120]
[343162563,1732389099481,-150.0,0.00055893,14]
[343162564,1732389099491,-151.75898535,0.00055893,14]
[343162565,1732389099500,-387.99341199,0.00055894,120]
[343162566,1732389099510,-500.0,0.00055894,120]
[343162567,1732389099519,-500.0,0.00055894,120]
[343162568,1732389099529,-582.44,0.00055894,120]
[343162569,1732389099538,-500.0,0.00055894,120]
[343162570,1732389099548,-500.0,0.00055894,120]
[343162571,1732389099558,-563.31,0.00055894,120]
[343162572,1732389099568,-500.0,0.00055894,120]
[343162573,1732389099576,-595.22720318,0.00055894,120]
[343162574,1732389099586,-500.0,0.00055894,120]
[343162575,1732389099595,-500.0,0.00055894,120]
[343162576,1732389099604,-500.0,0.00055894,120]
[343162577,1732389099614,-656.31,0.00055894,120]
[343162578,1732389099625,-500.0,0.00055894,120]
[343162579,1732389099635,-168.0,0.00055894,120]
[343162580,1732389099644,-577.44,0.00055894,120]
[343162581,1732389099653,-500.0,0.00055894,120]
[343162582,1732389099663,-609.3,0.00055894,120]
[343162583,1732389099673,-500.0,0.00055894,120]
[343162584,1732389099682,-1324.03,0.00055894,120]
[343162585,1732389099691,-1200.79,0.00055894,120]
[343162586,1732389099701,-500.0,0.00055894,120]
[343162587,1732389099711,-500.0,0.00055894,120]
[343162588,1732389099720,-771.94,0.00055894,120]
[343162589,1732389099730,-1803.76,0.00055894,120]
[343162590,1732389099740,-1486.62,0.00055894,120]
[343162591,1732389099750,-1278.68,0.00055894,120]
[343162592,1732389099759,-500.0,0.00055894,120]
[343162593,1732389099768,-1227.87,0.00055894,120]
[343162594,1732389099778,-1097.97,0.00055894,120]
[343162595,1732389099788,-1339.52,0.00055894,120]
[343162596,1732389099798,-391.28,0.00055894,120]
[343162597,1732389099807,-500.0,0.00055894,120]
[343162598,1732389099816,-500.0,0.00055894,54]
[343162599,1732389099826,-1360.17,0.00055894,120]
[343162600,1732389099835,-500.0,0.00055894,120]
[343162601,1732389099844,-500.0,0.00055894,120]
[343162602,1732389099853,-500.0,0.00055894,120]
[343162603,1732389099863,-500.0,0.00055894,120]
[343162604,1732389099872,-762.84,0.00055894,120]
[343162605,1732389099881,-1009.83,0.00055894,120]
[343162606,1732389099891,-500.0,0.00055894,120]
[343162607,1732389099901,-500.0,0.00055894,120]
[343162608,1732389099911,-836.17,0.00055894,120]
[343162609,1732389099921,-500.0,0.00055894,120]
[343162610,1732389099930,-1293.77,0.00055894,120]
[343162611,1732389099941,-222.29472114,0.00055894,120]
[343162612,1732389099951,-500.0,0.00055894,120]
[343162613,1732389099960,-500.0,0.00055894,30]
[343162614,1732389099969,-500.0,0.00055894,120]
[343162615,1732389099979,-500.0,0.00055894,120]
[343162616,1732389099995,-500.0,0.00055894,120]
[343162617,1732389100004,-62516.42299458,0.00055895,60]
[343162618,1732389100013,-882.38513667,0.00055896,30]
[343162619,1732389100023,-150.0,0.00055898,14]
[343162620,1732389100033,-150.0,0.000559,120]
[343162621,1732389100043,-5000.0,0.000559,120]
[343162622,1732389100052,-5509.78940944,0.000559,30]
[343162623,1732389100061,-158.0,0.000559,72]
[343162624,1732389100071,-158.0,0.000559,72]
[343162625,1732389100081,-1000.0,0.000559,27]
[343162626,1732389100090,-1000.0,0.000559,27]
[343162627,1732389100100,-150.0,0.00055905,14]
[343162628,1732389100110,-500.0,0.00055908,120]
[343162629,1732389100120,-150.0,0.00055909,14]
[343162630,1732389100130,-150.0,0.00055914,14]
[343162631,1732389100139,-400.34879134,0.00055921,120]
[343162632,1732389100150,-150.0,0.00055923,30]
[343162633,1732389100162,-150.0,0.00055928,14]
[343162634,1732389100171,-150.0,0.00055931,14]
[343162635,1732389100180,-150.0,0.00055938,14]
[343162636,1732389100190,-150.0,0.00055948,14]
[343162637,1732389100200,-500.0,0.00055948,120]
[343162638,1732389100211,-500.0,0.00055948,120]
[343162639,1732389100221,-500.0,0.00055948,120]
[343162640,1732389100231,-500.0,0.00055948,120]
[343162641,1732389100241,-500.0,0.00055948,120]
[343162642,1732389100251,-500.0,0.00055948,120]
[343162643,1732389100261,-500.0,0.00055948,120]
[343162644,1732389100270,-500.0,0.00055948,120]
[343162645,1732389100279,-500.0,0.00055948,120]
[343162646,1732389100289,-500.0,0.00055951,120]
[343162647,1732389100298,-151.0,0.00055951,120]
[343162648,1732389100308,-151.0,0.00055951,120]
[343162649,1732389100317,-500.0,0.00055951,120]
[343162650,1732389100327,-425.62003793,0.00055951,120]
[343162651,1732389100337,-151.0,0.00055951,120]
[343162652,1732389100346,-582.44,0.00055951,120]
[343162653,1732389100355,-500.0,0.00055951,120]
[343162654,1732389100365,-881.69,0.00055951,120]
[343162655,1732389100375,-500.0,0.00055951,120]
[343162656,1732389100385,-240.625105,0.00055951,120]
[343162657,1732389100395,-563.31,0.00055951,120]
[343162658,1732389100405,-240.625105,0.00055951,120]
[343162659,1732389100419,-151.0,0.00055951,120]
[343162660,1732389100429,-171.964808,0.00055951,120]
[343162661,1732389100439,-500.0,0.00055951,120]
[343162662,1732389100449,-184.236946,0.00055951,120]
[343162663,1732389100458,-151.0,0.00055951,120]
[343162664,1732389100468,-500.0,0.00055951,120]
[343162665,1732389100477,-828.16,0.00055951,120]
[343162666,1732389100487,-500.0,0.00055951,120]
[343162667,1732389100496,-500.0,0.00055951,120]
[343162668,1732389100506,-500.0,0.00055951,120]
[343162669,1732389100515,-500.0,0.00055951,120]
[343162670,1732389100525,-500.0,0.00055951,120]
[343162671,1732389100535,-243.39,0.00055951,120]
[343162672,1732389100544,-500.0,0.00055951,120]
[343162673,1732389100554,-218.633121,0.00055951,110]
[343162674,1732389100563,-218.633121,0.00055951,110]
[343162675,1732389100572,-151.0,0.00055951,120]
[343162676,1732389100581,-432.096887,0.00055951,30]
[343162677,1732389100590,-500.0,0.00055951,120]
[343162678,1732389100600,-432.096879,0.00055951,30]
[343162679,1732389100609,-241.004659,0.00055951,120]
[343162680,1732389100618,-241.004668,0.00055951,120]
[343162681,1732389100628,-656.31,0.00055951,120]
[343162682,1732389100637,-500.0,0.00055951,120]
[343162683,1732389100646,-500.0,0.00055951,120]
[343162684,1732389100655,-168.0,0.00055951,120]
[343162685,1732389100668,-577.44,0.00055951,120]
[343162686,1732389100677,-500.0,0.00055951,120]
[343162687,1732389100687,-609.3,0.00055951,120]
[343162688,1732389100697,-500.0,0.00055951,120]
[343162689,1732389100706,-1324.03,0.00055951,120]
[343162690,1732389100716,-1200.79,0.00055951,120]
[343162691,1732389100726,-500.0,0.00055951,120]
[343162692,1732389100736,-500.0,0.00055951,120]
[343162693,1732389100745,-771.94,0.00055951,120]
[343162694,1732389100755,-1803.76,0.00055951,120]
[343162695,1732389100764,-1486.62,0.00055951,120]
[343162696,1732389100773,-1278.68,0.00055951,120]
[343162697,1732389100783,-500.0,0.00055951,120]
[343162698,1732389100792,-1227.87,0.00055951,120]
[343162699,1732389100801,-1097.97,0.00055951,120]
[343162700,1732389100810,-1339.52,0.00055951,120]
[343162701,1732389100820,-500.0,0.00055951,120]
[343162702,1732389100830,-1572.78,0.00055951,120]
[343162703,1732389100840,-1572.78,0.00055951,120]
[343162704,1732389100849,-500.0,0.00055951,54]
[343162705,1732389100858,-1360.17,0.00055951,120]
[343162706,1732389100868,-938.06,0.00055951,120]
[343162707,1732389100878,-938.06,0.00055951,120]
[343162708,1732389100888,-500.0,0.00055951,120]
[343162709,1732389100897,-542.67444535,0.00055951,120]
[343162710,1732389100907,-504.66,0.00055951,120]
[343162711,1732389100922,-504.66,0.00055951,120]
[343162712,1732389100932,-500.0,0.00055951,120]
[343162713,1732389100941,-433.4,0.00055951,120]
[343162714,1732389100952,-500.0,0.00055951,120]
[343162715,1732389100962,-500.0,0.00055951,120]
[343162716,1732389100971,-500.0,0.00055951,21]
[343162717,1732389100981,-458.94,0.00055951,21]
[343162718,1732389100995,-500.0,0.00055951,120]
[343162719,1732389101004,-500.0,0.00055951,120]
[343162720,1732389101013,-153.705631,0.00055951,120]
[343162721,1732389101022,-153.705631,0.00055951,120]
[343162722,1732389101034,-503.12,0.00055951,120]
[343162723,1732389101044,-503.12,0.00055951,120]
[343162724,1732389101053,-762.84,0.00055951,120]
[343162725,1732389101063,-1009.83,0.00055951,120]
[343162726,1732389101072,-500.0,0.00055951,120]
[343162727,1732389101081,-500.0,0.00055951,120]
[343162728,1732389101091,-500.0,0.00055951,120]
[343162729,1732389101100,-500.0,0.00055951,120]
[343162730,1732389101109,-500.0,0.00055951,120]
[343162731,1732389101118,-500.0,0.00055951,120]
[343162732,1732389101128,-836.17,0.00055951,120]
[343162733,1732389101138,-500.0,0.00055951,120]
[343162734,1732389101147,-1293.77,0.00055951,120]
[343162735,1732389101157,-781.19,0.00055951,120]
[343162736,1732389101168,-781.19,0.00055951,120]
[343162737,1732389101177,-1494.48,0.00055951,120]
[343162738,1732389101186,-1494.48,0.00055951,120]
[343162739,1732389101196,-296.98783078,0.00055951,120]
[343162740,1732389101207,-500.0,0.00055951,30]
[343162741,1732389101218,-500.0,0.00055951,120]
[343162742,1732389101228,-687.21,0.00055951,120]
[343162743,1732389101237,-687.21,0.00055951,120]
[343162744,1732389101247,-516.37455816,0.00055951,120]
[343162745,1732389101257,-500.0,0.00055951,120]
[343162746,1732389101267,-500.0,0.00055951,120]
[343162747,1732389101276,-408.1,0.00055951,120]
[343162748,1732389101286,-151.0,0.00055952,120]
[343162749,1732389101295,-180.379376,0.00055952,120]
[343162750,1732389101305,-180.379376,0.00055952,120]
[343162751,1732389101314,-151.0,0.00055952,120]
[343162752,1732389101324,-151.0,0.00055952,120]
[343162753,1732389101334,-151.0,0.00055952,120]
[343162754,1732389101344,-224.0475,0.00055952,30]
[343162755,1732389101354,-224.0475,0.00055952,30]
[343162756,1732389101363,-151.0,0.00055952,120]
[343162757,1732389101373,-151.0,0.00055952,120]
[343162758,1732389101384,-151.0,0.00055952,120]
[343162759,1732389101393,-151.0,0.00055952,120]
[343162760,1732389101403,-151.0,0.00055952,120]
[343162761,1732389101414,-467.445494,0.00055952,120]
[343162762,1732389101423,-467.445494,0.00055952,120]
[343162763,1732389101433,-285.604341,0.00055952,120]
[343162764,1732389101443,-151.0,0.00055952,120]
[343162765,1732389101452,-169.15571,0.00055952,120]
[343162766,1732389101462,-169.15571,0.00055952,120]
[343162767,1732389101471,-240.625105,0.00055952,120]
[343162768,1732389101481,-240.625105,0.00055952,120]
[343162769,1732389101491,-151.0,0.00055952,120]
[343162770,1732389101501,-151.0,0.00055952,120]
[343162771,1732389101511,-218.633121,0.00055952,110]
[343162772,1732389101520,-218.633121,0.00055952,110]
[343162773,1732389101529,-150.0,0.00055952,14]
[343162774,1732389101539,-25957.6611602,0.00055952,2]
[343162775,1732389101548,-33010.8491992,0.00055952,2]
[343162776,1732389101557,-40064.0372381,0.00055952,2]
[343162777,1732389101566,-47117.2252771,0.00055952,2]
[343162778,1732389101575,-54170.413316,0.00055952,2]
[343162779,1732389101585,-9874.7033439,0.00055952,2]
[343162780,1732389101596,-12557.8472175,0.00055952,2]
[343162781,1732389101605,-15240.991091,0.00055952,2]
[343162782,1732389101615,-17924.1349646,0.00055952,2]
[343162783,1732389101625,-20607.2788381,0.00055952,2]
[343162784,1732389101634,-1500.0,0.00055957,30]
[343162785,1732389101644,-150.31,0.00055959,120]
[343162786,1732389101653,-2805.29101,0.0005597,77]
[343162787,1732389101664,-150.0,0.00055975,14]
[343162788,1732389101674,-203.427345,0.0005598,120]
[343162789,1732389101684,-151.0,0.0005598,120]
[343162790,1732389101693,-151.0,0.0005598,120]
[343162791,1732389101703,-151.0,0.0005598,120]
[343162792,1732389101712,-5195.0,0.0005598,30]
[343162793,1732389101722,-500.0,0.00055985,120]
[343162794,1732389101731,-500.0,0.00055985,120]
[343162795,1732389101741,-500.0,0.00055985,120]
[343162796,1732389101751,-656.31,0.00055985,120]
[343162797,1732389101760,-500.0,0.00055985,120]
[343162798,1732389101770,-168.0,0.00055985,120]
[343162799,1732389101780,-577.44,0.00055985,120]
[343162800,1732389101790,-500.0,0.00055985,120]
[343162801,1732389101799,-609.3,0.00055985,120]
[343162802,1732389101809,-500.0,0.00055985,120]
[343162803,1732389101818,-1324.03,0.00055985,120]
[343162804,1732389101827,-1200.79,0.00055985,120]
[343162805,1732389101837,-500.0,0.00055985,120]
[343162806,1732389101846,-500.0,0.00055985,120]
[343162807,1732389101856,-1803.76,0.00055985,120]
[343162808,1732389101865,-1486.62,0.00055985,120]
[343162809,1732389101875,-1278.68,0.00055985,120]
[343162810,1732389101884,-504.13498543,0.00055985,120]
[343162811,1732389101894,-1227.87,0.00055985,120]
[343162812,1732389101904,-1339.52,0.00055985,120]
[343162813,1732389101915,-1572.78,0.00055985,120]
[343162814,1732389101925,-1572.78,0.00055985,120]
[343162815,1732389101934,-1572.78,0.00055985,120]
[343162816,1732389101944,-1572.78,0.00055985,120]
[343162817,1732389101954,-1572.8422,0.00055985,120]
[343162818,1732389101964,-500.0,0.00055985,54]
[343162819,1732389101974,-1360.17,0.00055985,120]
[343162820,1732389101984,-938.06,0.00055985,120]
[343162821,1732389101996,-938.06,0.00055985,120]
[343162822,1732389102007,-938.06,0.00055985,120]
[343162823,1732389102016,-938.06,0.00055985,120]
[343162824,1732389102026,-938.19,0.00055985,120]
[343162825,1732389102037,-504.66,0.00055985,120]
[343162826,1732389102046,-504.66,0.00055985,120]
[343162827,1732389102056,-504.66,0.00055985,120]
[343162828,1732389102065,-504.66,0.00055985,120]
[343162829,1732389102082,-504.8,0.00055985,120]
[343162830,1732389102093,-500.0,0.00055985,120]
[343162831,1732389102103,-500.0,0.00055985,120]
[343162832,1732389102112,-433.96238025,0.00055985,120]
[343162833,1732389102121,-153.705631,0.00055985,120]
[343162834,1732389102130,-153.705631,0.00055985,120]
[343162835,1732389102139,-153.705631,0.00055985,120]
[343162836,1732389102149,-503.12,0.00055985,120]
[343162837,1732389102158,-503.12,0.00055985,120]
[343162838,1732389102168,-153.705631,0.00055985,120]
[343162839,1732389102177,-503.12,0.00055985,120]
[343162840,1732389102188,-503.12,0.00055985,120]
[343162841,1732389102197,-503.15,0.00055985,120]
[343162842,1732389102207,-762.84,0.00055985,120]
[343162843,1732389102217,-1009.83,0.00055985,120]
[343162844,1732389102226,-500.0,0.00055985,120]
[343162845,1732389102236,-500.0,0.00055985,120]
[343162846,1732389102247,-486.67,0.00055985,120]
[343162847,1732389102258,-500.0,0.00055985,120]
[343162848,1732389102267,-500.0,0.00055985,120]
[343162849,1732389102277,-500.0,0.00055985,120]
[343162850,1732389102287,-213.05,0.00055985,120]
[343162851,1732389102297,-500.0,0.00055985,120]
[343162852,1732389102307,-836.17,0.00055985,120]
[343162853,1732389102317,-500.0,0.00055985,120]
[343162854,1732389102327,-1293.77,0.00055985,120]
[343162855,1732389102336,-781.19,0.00055985,120]
[343162856,1732389102346,-781.19,0.00055985,120]
[343162857,1732389102355,-781.19,0.00055985,120]
[343162858,1732389102365,-781.19,0.00055985,120]
[343162859,1732389102375,-781.33,0.00055985,120]
[343162860,1732389102384,-1494.48,0.00055985,120]
[343162861,1732389102394,-1494.48,0.00055985,120]
[343162862,1732389102404,-1494.48,0.00055985,120]
[343162863,1732389102415,-1494.48,0.00055985,120]
[343162864,1732389102424,-1494.57,0.00055985,120]
[343162865,1732389102434,-500.0,0.00055985,30]
[343162866,1732389102443,-500.0,0.00055985,120]
[343162867,1732389102453,-687.21,0.00055985,120]
[343162868,1732389102462,-687.21,0.00055985,120]
[343162869,1732389102472,-687.21,0.00055985,120]
[343162870,1732389102481,-687.21,0.00055985,120]
[343162871,1732389102490,-687.34,0.00055985,120]
[343162872,1732389102500,-500.0,0.00055985,120]
[343162873,1732389102510,-500.0,0.00055985,120]
[343162874,1732389102519,-306.33864742,0.00055986,30]
[343162875,1732389102528,-467.445494,0.00055986,120]
[343162876,1732389102537,-467.445494,0.00055986,120]
[343162877,1732389102547,-151.0,0.00055986,120]
[343162878,1732389102556,-169.15571,0.00055986,120]
[343162879,1732389102566,-169.15571,0.00055986,120]
[343162880,1732389102575,-500.0,0.00055986,120]
[343162881,1732389102585,-500.0,0.00055986,120]
[343162882,1732389102595,-500.0,0.00055986,120]
[343162883,1732389102604,-368.09,0.00055986,120]
[343162884,1732389102614,-433.88,0.00055986,120]
[343162885,1732389102624,-582.44,0.00055986,120]
[343162886,1732389102633,-582.44,0.00055986,120]
[343162887,1732389102643,-582.44,0.00055986,120]
[343162888,1732389102653,-582.44,0.00055986,120]
[343162889,1732389102664,-582.44,0.00055986,120]
[343162890,1732389102674,-582.46354719,0.00055986,120]
[343162891,1732389102881,-500.0,0.00055986,120]
[343162892,1732389102892,-269.0164535,0.00055986,120]
[343162893,1732389102901,-881.69,0.00055986,120]
[343162894,1732389102912,-881.69,0.00055986,120]
[343162895,1732389102922,-881.69,0.00055986,120]
[343162896,1732389102932,-881.69,0.00055986,120]
[343162897,1732389102941,-881.69,0.00055986,120]
[343162898,1732389102951,-881.81,0.00055986,120]
[343162899,1732389102960,-500.0,0.00055986,120]
[343162900,1732389102970,-500.0,0.00055986,120]
[343162901,1732389102980,-500.0,0.00055986,120]
[343162902,1732389102991,-500.0,0.00055986,120]
[343162903,1732389103003,-500.0,0.00055986,120]
[343162904,1732389103014,-478.93309523,0.00055986,120]